bitfinex-derivatives/quotes_SOLF0:USTF0_20250625
["timestamp","ask_amount","ask_price","bid_price","bid_amount"]
[1750893401639,6.9915,142.96,142.94,6.992]
[1750893403134,35.78,142.99,142.94,6.992]
[1750893403135,6.991,142.97,142.94,6.992]
[1750893403932,6.9911,142.96,142.94,6.992]
[1750893404736,6.9916,142.95,142.93,6.9924]
[1750893404929,7.6857104,142.99,142.91,2.4715]
[1750893405134,48.2432104,142.98,142.87,35.78]
[1750893405330,6.993,142.93,142.9,6.9938]
[1750893405636,7.6857104,142.96,142.87,35.78]
[1750893406137,13.59627452,142.97,142.87,35.78]
[1750893406437,7.6857104,142.96,142.89,6.9942]
[1750893406636,5.91056412,142.97,142.89,6.9942]
[1750893406637,7.6857104,142.95,142.89,6.9942]
[1750893406838,43.4657104,142.94,142.87,35.78]
[1750893407038,6.9943,142.9,142.86,4.7159]
[1750893407237,35.78,142.94,142.86,4.7159]
[1750893407535,6.9938,142.91,142.88,6.9948]
[1750893407733,35.78,142.94,142.88,6.9948]
[1750893407935,38.26576632,142.94,142.88,6.9948]
[1750893408232,35.78,142.94,142.88,6.9948]
[1750893408433,5.1923929,142.93,142.88,6.9948]
[1750893409438,5.1923929,142.93,142.86,4.7159]
[1750893410342,6.9936,142.91,142.88,6.9948]
[1750893411145,6.9943,142.9,142.88,6.9948]
[1750893412446,6.9938,142.91,142.86,4.7159]
[1750893413039,6.9938,142.91,142.88,6.9948]
[1750893416946,6.9938,142.91,142.88,6.9946]
[1750893417939,6.9941,142.9,142.88,6.9946]
[1750893418147,7.65090993,142.92,142.84,35.78]
[1750893418340,6.9953,142.88,142.81,35.78]
[1750893418536,43.43090993,142.91,142.81,35.78]
[1750893418537,7.64658855,142.9,142.81,35.78]
[1750893418743,2.46341953,142.9,142.81,35.78]
[1750893419039,6.9958,142.87,142.84,6.9967]
[1750893419546,6.9961,142.86,142.84,6.9967]
[1750893420746,6.9957,142.87,142.84,6.9967]
[1750893422151,6.9953,142.88,142.81,35.78]
[1750893422950,6.9953,142.88,142.85,6.996]
[1750893423149,6.9958,142.87,142.81,35.78]
[1750893423445,43.39016081,142.91,142.83,6.9971]
[1750893423642,40.93363973,142.91,142.83,6.9971]
[1750893423847,6.9961,142.86,142.83,6.9971]
[1750893424240,6.9961,142.86,142.84,6.9969]
[1750893424446,6.9965,142.85,142.81,35.78]
[1750893425149,6.9973,142.84,142.82,6.9977]
[1750893425746,35.8,142.87,142.79,6.9986]
[1750893425946,35.8,142.89,142.79,6.9986]
[1750893426246,42.7948,142.89,142.86,6.9958]
[1750893429453,42.7948,142.89,142.87,6.9955]
[1750893429750,42.7948,142.89,142.82,35.8]
[1750893431151,6.9934,142.92,142.82,172.92]
[1750893431445,35.8,142.95,142.82,172.92]
[1750893431646,6.9943,142.9,142.88,6.995]
[1750893432050,7.59488724,142.94,142.82,172.92]
[1750893432244,6.9938,142.91,142.88,6.9946]
[1750893433051,6.9943,142.9,142.87,6.9953]
[1750893433253,35.8,142.91,142.82,172.92]
[1750893435048,6.9954,142.88,142.85,6.9963]
[1750893435947,6.9956,142.87,142.85,6.9963]
[1750893437549,6.9953,142.88,142.85,6.9963]
[1750893440559,35.8,142.91,142.82,172.92]
[1750893441155,35.8,142.94,142.82,172.92]
[1750893441656,42.7926,142.94,142.91,6.9933]
[1750893441856,35.8,142.94,142.91,6.9933]
[1750893442252,6.9928,142.93,142.91,6.9933]
[1750893444159,6.9928,142.93,142.9,6.9937]
[1750893444559,35.8,142.94,142.9,6.9937]
[1750893445151,6.993,142.93,142.9,6.9937]
[1750893448360,6.993,142.93,142.86,35.8]
[1750893448361,35.8,142.94,142.86,35.8]
[1750893448958,6.9928,142.93,142.86,35.8]
[1750893450162,42.7924,142.94,142.91,6.9933]
[1750893450462,42.7924,142.94,142.86,35.8]
[1750893451167,42.7924,142.94,142.91,6.9934]
[1750893451461,6.9919,142.95,142.86,35.8]
[1750893451660,35.98,142.97,142.86,35.8]
[1750893451860,5.91402788,142.96,142.93,6.9922]
[1750893452060,35.98,142.97,142.9,35.98]
[1750893452263,35.98,142.97,142.91,43.1457]
[1750893452667,6.9912,142.96,142.91,43.1457]
[1750893452870,35.98,142.97,142.91,7.1657]
[1750893453061,7.63721256,142.96,142.91,7.1657]
[1750893453263,35.98,142.97,142.91,7.1657]
[1750893453466,7.63508923,142.96,142.92,6.9928]
[1750893453670,35.98,142.97,142.92,6.9928]
[1750893453867,7.63477835,142.96,142.92,6.9928]
[1750893454171,35.98,142.97,142.92,6.9928]
[1750893454372,7.66600327,142.96,142.92,6.9928]
[1750893454562,35.98,142.97,142.92,6.9928]
[1750893454767,7.66579258,142.96,142.91,14.1591]
[1750893454960,7.66589099,142.95,142.91,6.9934]
[1750893455157,5.195375,142.94,142.91,6.9934]
[1750893455358,6.9924,142.94,142.91,6.9934]
[1750893455762,6.9924,142.94,142.92,6.993]
[1750893455963,6.9919,142.95,142.92,6.993]
[1750893457166,35.98,142.97,142.91,6.9934]
[1750893457371,13.57671736,142.96,142.89,7.2023]
[1750893457576,7.6654794,142.95,142.89,7.2023]
[1750893457777,6.9928,142.93,142.91,6.9935]
[1750893459884,6.9923,142.94,142.89,7.2023]
[1750893460378,6.9923,142.94,142.91,6.9933]
[1750893463577,6.9919,142.95,142.92,6.993]
[1750893464381,35.98,142.97,142.89,7.2023]
[1750893465380,42.9708,142.97,142.94,6.9917]
[1750893466386,42.9708,142.97,142.95,6.9914]
[1750893468781,640.36,143.0,142.92,35.98]
[1750893468981,5.19710837,142.99,142.92,35.98]
[1750893469187,640.36,143.0,142.92,35.98]
[1750893469383,5.19612345,142.99,142.92,35.98]
[1750893469583,6.9904,142.98,142.92,35.98]
[1750893469887,5.19612074,142.99,142.92,35.98]
[1750893470075,7.65718799,142.98,142.92,6.9926]
[1750893470274,13.57083126,142.97,142.89,7.2023]
[1750893470475,6.9924,142.94,142.91,6.9931]
[1750893470882,6.9924,142.94,142.89,7.2023]
[1750893471083,6.9918,142.95,142.92,6.9926]
[1750893471782,6.9918,142.95,142.93,6.9925]
[1750893472686,35.98,142.96,142.89,7.2023]
[1750893473681,6.9919,142.95,142.92,6.9928]
[1750893476884,5.2139505,142.94,142.9,6.9938]
[1750893477083,35.98,142.96,142.89,2.2817]
[1750893477579,6.9919,142.95,142.89,2.2817]
[1750893477981,6.9919,142.95,142.92,6.9926]
[1750893478883,6.9919,142.95,142.93,6.9926]
[1750893480197,42.9712,142.96,142.93,6.9926]
[1750893480792,42.9712,142.96,142.94,6.9921]
[1750893482288,35.98,142.96,142.95,6.9916]
[1750893482490,40.3610255,142.99,142.91,35.96]
[1750893482691,18.00904963,142.98,142.89,2.2817]
[1750893482889,18.00904963,142.97,142.89,2.2817]
[1750893483192,18.00904963,142.96,142.89,2.2817]
[1750893483385,6.9931,142.93,142.9,6.994]
[1750893483586,5.21436201,142.92,142.9,6.994]
[1750893483792,4.4010255,142.94,142.9,6.994]
[1750893484000,6.9933,142.92,142.9,6.994]
[1750893484689,6.9933,142.92,142.89,2.2817]
[1750893484890,35.96,142.95,142.89,9.276]
[1750893485097,18.28483096,142.94,142.89,9.276]
[1750893485304,18.28483096,142.93,142.9,6.994]
[1750893485598,14.67899432,142.92,142.89,2.2817]
[1750893485896,6.9933,142.92,142.89,2.2817]
[1750893486196,6.9933,142.92,142.89,9.2759]
[1750893487299,6.9936,142.91,142.89,9.2759]
[1750893488197,35.96,142.95,142.85,35.96]
[1750893488400,18.28921507,142.94,142.85,35.96]
[1750893488602,6.9935,142.92,142.89,6.9945]
[1750893488795,5.21853213,142.91,142.85,35.96]
[1750893489000,6.9935,142.92,142.85,35.96]
[1750893489304,6.9935,142.92,142.89,6.9942]
[1750893489697,5.21796469,142.91,142.88,6.9948]
[1750893489897,5.92738477,142.94,142.88,6.9948]
[1750893490096,6.9938,142.91,142.85,35.96]
[1750893490304,35.96,142.95,142.85,35.96]
[1750893490604,6.9934,142.92,142.85,35.96]
[1750893491199,6.9934,142.92,142.89,6.9941]
[1750893491595,6.9934,142.92,142.85,35.96]
[1750893492201,6.9934,142.92,142.9,6.9937]
[1750893492504,5.92655607,142.94,142.85,35.96]
[1750893492699,12.31861363,142.93,142.85,35.96]
[1750893492905,6.9915,142.96,142.86,13.9917]
[1750893493399,42.9503,142.98,142.96,6.9911]
[1750893493592,5.20344063,142.97,142.96,6.9911]
[1750893494302,35.96,142.98,142.92,35.96]
[1750893494501,18.23145738,142.97,142.92,35.96]
[1750893494702,7.66579327,142.96,142.92,35.96]
[1750893494896,6.9913,142.96,142.92,35.96]
[1750893495296,5.91962905,142.97,142.89,43.0602]
[1750893495499,7.66669199,142.96,142.89,43.0602]
[1750893495703,35.96,142.98,142.89,43.0602]
[1750893495900,6.9919,142.95,142.93,6.9923]
[1750893497011,6.9913,142.96,142.93,6.9923]
[1750893497310,5.22557346,142.95,142.93,6.9923]
[1750893497510,6.9913,142.96,142.93,6.9923]
[1750893497713,5.22566434,142.95,142.93,6.9923]
[1750893497910,6.9913,142.96,142.93,6.9923]
[1750893498106,5.22566318,142.95,142.93,6.9923]
[1750893498309,6.9913,142.96,142.93,6.9923]
[1750893498506,5.22559347,142.95,142.93,6.9923]
[1750893498809,6.9913,142.96,142.93,6.9923]
[1750893499012,5.22559579,142.95,142.93,6.9923]
[1750893499208,6.9913,142.96,142.93,6.9923]
[1750893499511,5.22543032,142.95,142.93,6.9923]
[1750893499709,6.9913,142.96,142.93,6.9923]
[1750893499909,5.22552527,142.95,142.93,6.9923]
[1750893500110,6.9913,142.96,142.93,6.9923]
[1750893500310,5.22552759,142.95,142.93,6.9923]
[1750893500510,6.9913,142.96,142.93,6.9923]
[1750893500712,5.22548664,142.95,142.93,6.9923]
[1750893501010,6.9913,142.96,142.93,6.9923]
[1750893501308,5.22790063,142.95,142.93,6.9923]
[1750893501509,6.9913,142.96,142.93,6.9923]
[1750893501810,5.2278158,142.95,142.94,6.9921]
[1750893502214,6.9913,142.96,142.94,6.9921]
[1750893502811,5.22214351,142.95,142.94,6.9921]
[1750893503012,6.9913,142.96,142.94,6.9921]
[1750893503510,6.9909,142.97,142.94,6.9921]
[1750893503715,7.69076908,142.96,142.94,6.9921]
[1750893504014,6.9909,142.97,142.94,6.9921]
[1750893504212,7.69076908,142.96,142.94,6.9921]
[1750893504403,6.9909,142.97,142.94,6.9921]
[1750893504604,5.22177335,142.96,142.95,6.9916]
[1750893504905,35.96,142.98,142.89,43.0602]
[1750893505111,5.22098263,142.97,142.95,6.9912]
[1750893505311,42.9504,142.98,142.89,43.0602]
[1750893505511,5.22038833,142.97,142.89,43.0602]
[1750893505705,42.9504,142.98,142.89,43.0602]
[1750893505911,12.21118833,142.97,142.95,6.9913]
[1750893506113,6.9908,142.97,142.95,6.9913]
[1750893507115,42.9504,142.98,142.96,6.9911]
[1750893508520,6.9906,142.97,142.89,43.0602]
[1750893508816,35.96,143.01,142.9,13.9879]
[1750893509012,18.31204083,143.0,142.89,43.0602]
[1750893509216,35.96,143.01,142.89,43.0602]
[1750893509413,745.5075,143.07,142.89,43.0602]
[1750893509414,35.96,143.04,142.89,43.0602]
[1750893509619,6.9884,143.02,143.0,6.9889]
[1750893510115,11.66101291,143.03,143.0,6.9889]
[1750893510311,35.96,143.04,143.0,6.9889]
[1750893510517,7.68773362,143.03,143.0,6.9889]
[1750893510718,35.96,143.04,143.0,6.9889]
[1750893510920,7.6929007,143.03,143.0,6.9889]
[1750893511114,6.9878,143.03,143.0,6.9889]
[1750893511419,35.96,143.04,143.0,6.9889]
[1750893511719,7.68956862,143.03,143.0,6.9889]
[1750893511919,35.96,143.04,143.0,6.9889]
[1750893512214,7.6895733,143.03,143.0,6.9889]
[1750893512418,6.9878,143.03,143.0,6.9889]
[1750893513219,35.96,143.04,142.97,4.5724]
[1750893513427,18.33968675,143.03,142.96,35.96]
[1750893513622,18.33968675,143.02,142.94,2.2697]
[1750893513921,6.9896,143.0,142.96,6.9911]
[1750893514324,6.9896,143.0,142.97,6.9905]
[1750893517517,6.9897,142.99,142.97,6.9905]
[1750893518523,6.9897,142.99,142.96,6.991]
[1750893518835,6.9897,142.99,142.94,2.2697]
[1750893519534,4.68213403,143.02,142.94,2.2697]
[1750893519831,5.22670804,143.01,142.94,2.2697]
[1750893520017,4.68213403,143.02,142.94,2.2697]
[1750893520221,6.9899,142.99,142.96,6.9907]
[1750893521233,7.69507795,143.01,142.95,6.9913]
[1750893521425,10.62530716,143.02,142.94,2.2697]
[1750893521628,7.69518258,143.01,142.94,2.2697]
[1750893521829,7.69518258,143.01,142.92,4.7161]
[1750893521830,48.19704211,143.0,142.92,40.5361]
[1750893522030,5.22741959,142.99,142.92,40.5361]
[1750893522226,6.9911,142.96,142.94,6.9918]
[1750893523746,6.9908,142.97,142.94,6.9918]
[1750893524736,6.9908,142.97,142.95,6.9916]
[1750893525637,6.9908,142.97,142.94,6.9918]
[1750893525836,6.9908,142.97,142.92,40.5361]
[1750893527136,6.9908,142.97,142.94,6.9917]
[1750893528041,35.82,143.0,142.92,40.5361]
[1750893528247,12.35809482,142.99,142.92,40.5361]
[1750893528435,5.22191814,142.98,142.92,40.5361]
[1750893528640,6.9916,142.95,142.93,6.9924]
[1750893528935,7.69055528,142.98,142.89,38.241]
[1750893529130,6.992,142.95,142.92,6.9928]
[1750893529329,13.07900638,142.98,142.89,38.241]
[1750893529639,18.30429655,142.97,142.89,38.241]
[1750893529846,6.9928,142.93,142.9,6.9937]
[1750893530938,6.9928,142.93,142.91,6.9935]
[1750893532336,6.9923,142.94,142.91,6.9935]
[1750893532741,35.82,142.96,142.9,6.9939]
[1750893532948,6.9929,142.93,142.9,6.9939]
[1750893533143,35.82,142.96,142.9,6.9939]
[1750893533344,12.31562342,142.95,142.89,6.9943]
[1750893533545,35.82,142.96,142.87,4.5924]
[1750893533546,6.9939,142.91,142.87,4.5924]
[1750893533838,12.31514352,142.93,142.89,6.9942]
[1750893534047,5.18727577,142.92,142.89,6.9942]
[1750893534235,7.12796797,142.93,142.89,6.9942]
[1750893534441,10.57527347,142.95,142.89,6.9942]
[1750893534641,18.22837175,142.94,142.88,6.9948]
[1750893534842,12.31624205,142.93,142.88,6.9948]
[1750893535038,6.9943,142.9,142.88,6.9948]
[1750893535345,6.9943,142.9,142.87,6.9952]
[1750893535540,7.65259092,142.92,142.86,35.84]
[1750893535737,35.84,142.92,142.86,35.84]
[1750893536837,6.9939,142.91,142.88,6.9948]
[1750893539044,6.9939,142.91,142.89,6.9945]
[1750893539845,35.84,142.92,142.89,6.9945]
[1750893540348,42.8334,142.92,142.89,6.9945]
[1750893541349,6.9936,142.91,142.86,35.84]
[1750893541640,35.84,142.92,142.86,35.84]
[1750893541840,35.84,142.92,142.86,6.9957]
[1750893542048,38.29495687,142.92,142.86,6.9957]
[1750893542247,38.29495687,142.92,142.84,6.9965]
[1750893542449,6.9955,142.87,142.83,40.5413]
[1750893544043,6.9955,142.87,142.85,6.9965]
[1750893544845,6.9955,142.87,142.84,6.9967]
[1750893545147,6.9955,142.87,142.83,40.5413]
[1750893545346,6.9955,142.87,142.84,6.9967]
[1750893546045,40.7535,142.92,142.83,2.3014]
[1750893546046,10.07669455,142.92,142.83,2.3014]
[1750893546245,45.60278127,142.91,142.8,35.82]
[1750893546439,11.0401342,142.9,142.8,35.82]
[1750893546741,6.9968,142.85,142.82,6.9976]
[1750893547347,6.9961,142.86,142.8,35.82]
[1750893547743,35.82,142.87,142.8,35.82]
[1750893547941,42.8157,142.87,142.84,6.9967]
[1750893548337,35.82,142.87,142.8,35.82]
[1750893548740,35.82,142.87,142.82,6.9977]
[1750893549447,6.9971,142.84,142.81,6.9982]
[1750893549848,6.9968,142.85,142.82,6.9979]
[1750893550247,35.82,142.87,142.8,35.82]
[1750893550650,6.997,142.84,142.81,6.9982]
[1750893551245,6.997,142.84,142.82,6.9979]
[1750893551451,6.9967,142.85,142.82,6.9979]
[1750893552247,6.9967,142.85,142.8,35.82]
[1750893552450,35.82,142.87,142.83,6.9974]
[1750893552646,35.82,142.87,142.8,35.82]
[1750893552949,6.9967,142.85,142.82,6.9977]
[1750893553149,35.82,142.87,142.8,35.82]
[1750893553545,35.82,142.87,142.83,6.9975]
[1750893554652,6.9961,142.86,142.83,6.9975]
[1750893555351,42.8156,142.87,142.84,6.997]
[1750893555749,35.82,142.87,142.8,35.82]
[1750893555951,35.84,142.9,142.81,2.4921]
[1750893556347,6.9953,142.88,142.85,6.9962]
[1750893557954,6.9956,142.87,142.84,6.9967]
[1750893558246,6.9956,142.87,142.81,2.4921]
[1750893559455,6.996,142.86,142.81,2.4921]
[1750893560258,6.996,142.86,142.83,6.997]
[1750893560850,35.84,142.9,142.81,2.4921]
[1750893561359,6.9972,142.84,142.81,2.4921]
[1750893562360,6.9972,142.84,142.82,6.9978]
[1750893563358,6.9978,142.83,142.78,4.6992]
[1750893563564,35.84,142.86,142.78,4.6992]
[1750893563861,6.9983,142.82,142.79,6.9992]
[1750893564557,35.84,142.86,142.8,6.9989]
[1750893564751,35.84,142.86,142.78,2.4017]
[1750893564961,35.84,142.86,142.78,4.7248]
[1750893565260,6.9973,142.84,142.78,4.7248]
[1750893565760,6.9973,142.84,142.81,6.9982]
[1750893565964,6.9975,142.83,142.81,6.9982]
[1750893566351,6.9975,142.83,142.8,6.9987]
[1750893566557,6.998,142.82,142.78,4.7248]
[1750893566862,40.97116608,142.86,142.81,6.9983]
[1750893567067,6.9974,142.84,142.81,6.9983]
[1750893567257,35.84,142.86,142.81,6.9983]
[1750893567456,6.9968,142.85,142.82,6.9979]
[1750893569262,42.8362,142.86,142.83,6.9974]
[1750893570055,35.84,142.86,142.79,2.2637]
[1750893570257,640.3,142.89,142.79,2.2637]
[1750893570470,6.9952,142.88,142.86,6.996]
[1750893571261,42.8347,142.89,142.87,6.9955]
[1750893571464,35.84,142.89,142.87,6.9955]
[1750893571769,35.84,142.89,142.88,6.995]
[1750893573261,6.9943,142.9,142.88,6.995]
[1750893573460,6.9938,142.91,142.89,6.9945]
[1750893574268,42.8133,142.92,142.89,6.9945]
[1750893576668,35.82,142.92,142.9,6.9939]
[1750893576872,5.13021816,142.94,142.86,35.82]
[1750893577066,6.9924,142.94,142.91,6.9932]
[1750893577467,35.82,142.95,142.86,35.82]
[1750893577669,42.8118,142.95,142.92,6.9928]
[1750893577863,35.82,142.95,142.86,35.82]
[1750893578173,6.9928,142.93,142.86,35.82]
[1750893578372,35.82,142.95,142.86,35.82]
[1750893578672,42.8118,142.95,142.92,6.9928]
[1750893579064,35.82,142.95,142.86,35.82]
[1750893580170,6.9926,142.93,142.91,6.9931]
[1750893581073,6.9923,142.94,142.91,6.9931]
[1750893582474,6.9928,142.93,142.91,6.9931]
[1750893583875,6.9923,142.94,142.91,6.9931]
[1750893584275,35.82,142.95,142.91,6.9931]
[1750893584871,6.9922,142.94,142.91,6.9931]
[1750893585475,6.9926,142.93,142.91,6.9931]
[1750893586477,6.9926,142.93,142.9,6.9938]
[1750893587071,6.9926,142.93,142.86,35.82]
[1750893587569,6.9926,142.93,142.9,6.9938]
[1750893587869,35.82,142.95,142.9,6.9938]
[1750893588267,6.9929,142.93,142.9,6.9938]
[1750893588464,35.82,142.95,142.86,35.82]
[1750893588969,42.8117,142.95,142.86,35.82]
[1750893589774,42.8117,142.95,142.92,6.9928]
[1750893590074,6.9924,142.94,142.92,6.9928]
[1750893590578,35.82,142.95,142.86,35.82]
[1750893591275,42.8118,142.95,142.92,6.9926]
[1750893591470,42.8118,142.95,142.86,35.82]
[1750893593076,42.8118,142.95,142.93,6.9923]
[1750893595272,6.9918,142.95,142.93,6.9923]
[1750893596379,35.8,142.98,142.9,35.8]
[1750893597473,6.9913,142.96,142.94,6.9919]
[1750893597681,35.8,142.98,142.9,35.8]
[1750893598377,6.9909,142.97,142.9,35.8]
[1750893600277,6.9909,142.97,142.95,6.9914]
[1750893600678,42.7903,142.98,142.96,6.9911]
[1750893600979,6.9903,142.98,142.96,6.9911]
[1750893601278,35.8,143.01,142.9,35.8]
[1750893601475,6.9898,142.99,142.97,6.9904]
[1750893601778,6.9898,142.99,142.9,35.8]
[1750893601779,35.8,143.01,142.94,35.76]
[1750893602077,6.9899,142.99,142.94,35.76]
[1750893602479,6.9899,142.99,142.96,6.9907]
[1750893602779,6.9899,142.99,142.94,35.76]
[1750893603275,6.9902,142.98,142.94,35.76]
[1750893603882,6.9911,142.97,142.94,35.76]
[1750893604679,6.9911,142.97,142.95,6.9913]
[1750893604880,6.9904,142.98,142.95,6.9913]
[1750893608976,43.4533141,143.01,142.91,35.76]
[1750893609185,13.46664236,143.0,142.91,35.76]
[1750893609373,5.19077808,142.99,142.91,35.76]
[1750893609573,6.9912,142.96,142.93,6.9922]
[1750893609774,5.19077808,142.99,142.91,35.76]
[1750893609987,6.9918,142.95,142.91,35.76]
[1750893610688,6.9918,142.95,142.92,6.993]
[1750893612281,6.9922,142.94,142.92,6.993]
[1750893613185,6.9926,142.93,142.91,42.7533]
[1750893613389,5.20278162,142.96,142.89,7.2404]
[1750893613689,2.46788954,142.96,142.89,7.2404]
[1750893614185,6.9931,142.92,142.89,14.2346]
[1750893614386,4.66748392,142.96,142.89,7.2404]
[1750893614587,5.20751776,142.95,142.89,7.2404]
[1750893614786,4.66748392,142.96,142.89,7.2404]
[1750893614992,6.9925,142.94,142.9,6.9938]
[1750893615178,6.9925,142.94,142.89,7.2404]
[1750893615384,6.9925,142.94,142.91,6.9932]
[1750893617493,6.9925,142.94,142.92,6.993]
[1750893619782,6.9925,142.94,142.91,6.9934]
[1750893622603,6.9925,142.94,142.89,7.2404]
[1750893622604,6.9925,142.94,142.92,6.993]
[1750893622792,6.9918,142.95,142.92,6.993]
[1750893623100,5.92518883,142.96,142.91,6.9933]
[1750893623300,6.9931,142.92,142.88,35.76]
[1750893623688,6.9931,142.92,142.89,6.9944]
[1750893624495,6.9931,142.92,142.9,6.994]
[1750893625688,35.76,142.93,142.85,40.5965]
[1750893625899,54.03860731,142.92,142.85,40.5965]
[1750893626202,6.9943,142.9,142.87,6.9951]
[1750893626386,35.76,142.92,142.85,40.5965]
[1750893626593,12.33604451,142.91,142.85,40.5965]
[1750893626792,6.9943,142.9,142.87,6.9952]
[1750893626988,10.5876805,142.91,142.85,38.2609]
[1750893627201,7.65953566,142.9,142.85,38.2609]
[1750893627401,10.58321753,142.91,142.85,38.2609]
[1750893627604,35.76,142.92,142.85,38.2609]
[1750893627605,7.65644307,142.9,142.85,38.2609]
[1750893627802,10.5831322,142.91,142.85,38.2609]
[1750893628004,6.9946,142.89,142.86,6.9958]
[1750893628199,5.90398205,142.91,142.85,38.2609]
[1750893628399,35.76,142.92,142.85,38.2609]
[1750893628597,6.9942,142.9,142.87,6.9952]
[1750893629698,6.9948,142.89,142.86,6.9957]
[1750893632498,35.76,142.92,142.86,6.9957]
[1750893632694,7.63952005,142.91,142.86,6.9957]
[1750893632898,35.76,142.92,142.86,6.9957]
[1750893633098,7.63952005,142.91,142.86,6.9957]
[1750893633310,35.76,142.92,142.86,6.9957]
[1750893633493,6.9953,142.88,142.85,6.9962]
[1750893634103,7.61110599,142.9,142.82,35.7]
[1750893634307,15.28426737,142.91,142.82,35.7]
[1750893634508,10.07638556,142.9,142.82,35.7]
[1750893634705,6.9953,142.88,142.85,6.9965]
[1750893634904,35.72,142.88,142.85,6.9965]
[1750893636300,6.9956,142.87,142.85,6.9965]
[1750893639012,35.72,142.92,142.82,35.7]
[1750893639203,35.72,142.92,142.83,2.3867]
[1750893639511,6.9943,142.9,142.87,6.9953]
[1750893639903,40.86068469,142.92,142.87,6.9953]
[1750893641308,6.9944,142.9,142.87,6.9953]
[1750893641511,40.86068469,142.92,142.87,6.9953]
[1750893641705,40.86068469,142.92,142.86,6.9958]
[1750893642203,6.9949,142.89,142.86,6.9958]
[1750893644313,6.9942,142.9,142.87,6.9953]
[1750893645401,6.9946,142.89,142.87,6.9953]
[1750893647314,6.9943,142.9,142.87,6.9953]
[1750893649303,6.9943,142.9,142.88,6.995]
[1750893649507,6.9943,142.9,142.83,2.3867]
[1750893650011,6.9943,142.9,142.88,6.9949]
[1750893650214,6.9943,142.9,142.83,2.3867]
[1750893650613,6.9943,142.9,142.87,6.9953]
[1750893651419,6.9946,142.89,142.87,6.9953]
[1750893651717,5.15612961,142.91,142.87,6.9953]
[1750893651917,6.9944,142.9,142.87,6.9953]
[1750893654005,6.9946,142.89,142.87,6.9953]
[1750893655215,4.64300511,142.9,142.85,6.9962]
[1750893655413,35.72,142.88,142.85,6.9962]
[1750893655810,6.9957,142.87,142.84,6.9967]
[1750893656022,35.72,142.88,142.82,35.7]
[1750893656425,35.72,142.88,142.83,6.9971]
[1750893656426,6.9963,142.86,142.83,6.9971]
[1750893658429,6.9966,142.85,142.82,6.9978]
[1750893659417,18.12661128,142.87,142.79,38.191]
[1750893659617,7.60561551,142.86,142.79,38.191]
[1750893659814,6.9977,142.83,142.8,6.9986]
[1750893660222,6.9977,142.83,142.79,38.191]
[1750893660421,6.9972,142.84,142.81,6.9984]
[1750893661022,6.9975,142.83,142.81,6.9984]
[1750893662728,6.9975,142.83,142.8,6.9987]
[1750893663223,6.9972,142.84,142.79,38.191]
[1750893663618,6.9972,142.84,142.81,6.9982]
[1750893665418,5.11150954,142.86,142.79,38.191]
[1750893665621,35.72,142.88,142.79,38.191]
[1750893666128,35.72,142.88,142.8,13.9978]
[1750893666622,6.9948,142.89,142.87,6.9955]
[1750893667721,35.68,142.91,142.86,6.9957]
[1750893667929,5.11291574,142.9,142.86,6.9957]
[1750893668125,35.68,142.91,142.86,6.9957]
[1750893668321,10.99735333,142.9,142.86,6.9957]